fUSD/lending_fUSD_20260111
["ID","MTS","AMOUNT","RATE_DAILY","PERIOD"]
[401288887,1768108250473,-242.540878,0.000207,2]
[401288888,1768108250483,-184.759564,0.000207,2]
[401288889,1768108250493,-242.540878,0.000207,2]
[401288890,1768108250503,-232.98971,0.000207,2]
[401288891,1768108250513,-232.98971,0.000207,2]
[401288892,1768108250523,-232.98971,0.000207,2]
[401288893,1768108250535,-232.98971,0.000207,2]
[401288894,1768108250546,-151.0,0.000207,2]
[401288895,1768108250557,-151.0,0.000207,2]
[401288896,1768108250568,-151.0,0.000207,2]
[401288897,1768108250578,-246.96308,0.000207,2]
[401288898,1768108250588,-151.0,0.000207,2]
[401288899,1768108250598,-290.548563,0.000207,2]
[401288900,1768108250608,-185.671433,0.000207,2]
[401288901,1768108250617,-185.671433,0.000207,2]
[401288902,1768108250627,-185.671433,0.000207,2]
[401288903,1768108250637,-185.671433,0.000207,2]
[401288904,1768108250648,-715.08318,0.000207,2]
[401288905,1768108250658,-715.08318,0.000207,2]
[401288906,1768108250668,-715.08318,0.000207,2]
[401288907,1768108250678,-715.08318,0.000207,2]
[401288908,1768108250690,-151.0,0.000207,2]
[401288909,1768108250702,-418.543655,0.000207,2]
[401288910,1768108250713,-418.543655,0.000207,2]
[401288911,1768108250726,-445.8129,0.000207,2]
[401288912,1768108250736,-418.543655,0.000207,2]
[401288913,1768108250746,-364.920004,0.000207,2]
[401288914,1768108250756,-445.8129,0.000207,2]
[401288915,1768108250767,-418.543655,0.000207,2]
[401288916,1768108250777,-364.920004,0.000207,2]
[401288917,1768108250788,-445.8129,0.000207,2]
[401288918,1768108250798,-364.920004,0.000207,2]
[401288919,1768108250808,-445.8129,0.000207,2]
[401288920,1768108250819,-364.920004,0.000207,2]
[401288921,1768108250829,-151.0,0.000207,2]
[401288922,1768108250840,-151.0,0.000207,2]
[401288923,1768108250851,-151.0,0.000207,2]
[401288924,1768108250862,-151.0,0.000207,2]
[401288925,1768108250872,-151.0,0.000207,2]
[401288926,1768108250883,-851.699106,0.000207,2]
[401288927,1768108250893,-151.0,0.000207,2]
[401288928,1768108250903,-851.699106,0.000207,2]
[401288929,1768108250914,-851.699106,0.000207,2]
[401288930,1768108250925,-851.699106,0.000207,2]
[401288931,1768108250936,-202.835873,0.000207,2]
[401288932,1768108250946,-202.835873,0.000207,2]
[401288933,1768108250957,-252.136943,0.000207,2]
[401288934,1768108250967,-202.835873,0.000207,2]
[401288935,1768108250978,-252.136943,0.000207,2]
[401288936,1768108250988,-202.835873,0.000207,2]
[401288937,1768108250998,-252.136943,0.000207,2]
[401288938,1768108251008,-252.136943,0.000207,2]
[401288939,1768108251018,-151.0,0.000207,2]
[401288940,1768108251027,-514.027543,0.000207,2]
[401288941,1768108251037,-514.027543,0.000207,2]
[401288942,1768108251047,-514.027543,0.000207,2]
[401288943,1768108251056,-514.027543,0.000207,2]
[401288944,1768108251067,-173.361121,0.000207,2]
[401288945,1768108251077,-173.361121,0.000207,2]
[401288946,1768108251087,-173.361121,0.000207,2]
[401288947,1768108251097,-173.361121,0.000207,2]
[401288948,1768108251107,-151.0,0.000207,2]
[401288949,1768108251118,-151.0,0.000207,2]
[401288950,1768108251128,-1046.363777,0.000207,2]
[401288951,1768108251138,-1046.363777,0.000207,2]
[401288952,1768108251148,-1046.363777,0.000207,2]
[401288953,1768108251157,-230.143729,0.000207,2]
[401288954,1768108251168,-151.0,0.000207,2]
[401288955,1768108251177,-230.143729,0.000207,2]
[401288956,1768108251187,-1046.363777,0.000207,2]
[401288957,1768108251198,-203.965352,0.000207,2]
[401288958,1768108251211,-230.143729,0.000207,2]
[401288959,1768108251221,-230.143729,0.000207,2]
[401288960,1768108251231,-273.843479,0.000207,2]
[401288961,1768108251241,-273.843479,0.000207,2]
[401288962,1768108251253,-273.843479,0.000207,2]
[401288963,1768108251262,-273.843479,0.000207,2]
[401288964,1768108251272,-151.0,0.000207,2]
[401288965,1768108251287,-210.06325,0.00020712,2]
[401288966,1768108251303,-151.0,0.00020712,2]
[401288967,1768108251313,-151.0,0.00020712,2]
[401288968,1768108251324,-3000.0,0.00020712,2]
[401288969,1768108251333,-363.07,0.00020802,2]
[401288970,1768108251343,-34633.534069,0.00020812,2]
[401288971,1768108251353,-3706.0860733,0.00020812,2]
[401288972,1768108251362,-151.0,0.00020812,2]
[401288973,1768108251372,-151.0,0.00020812,2]
[401288974,1768108251382,-448.39441816,0.00020822,2]
[401288975,1768108251391,-1791.78409498,0.00020822,2]
[401288976,1768108251401,-3057.93101456,0.00020875,2]
[401288977,1768108251411,-16890.3427323,0.00020941,2]
[401288978,1768108251421,-2683.1685876,0.00020941,2]
[401288979,1768108251430,-500.0,0.00020944,2]
[401288980,1768108251440,-152.0,0.00020968,4]
[401288981,1768108251450,-20000.0,0.00021,2]
[401288982,1768108251460,-1005.29337111,0.00021,2]
[401288983,1768108251470,-1191.77945418,0.00021,2]
[401288984,1768108251479,-196.71310824,0.00021,2]
[401288985,1768108251489,-350.0,0.00021,2]
[401288986,1768108251499,-200.0,0.00021,2]
[401288987,1768108251509,-1000.0,0.0002102,2]
[401288988,1768108251519,-500.0,0.00021052,2]
[401288989,1768108251529,-151.0,0.00021052,2]
[401288990,1768108251539,-553.64373807,0.00021052,2]
[401288991,1768108251548,-500.0,0.00021052,2]
[401288992,1768108251558,-250.0,0.00021052,2]
[401288993,1768108251568,-500.0,0.00021052,2]
[401288994,1768108251577,-250.0,0.00021052,2]
[401288995,1768108251587,-500.0,0.00021052,2]
[401288996,1768108251598,-500.0,0.00021052,2]
[401288997,1768108251609,-250.0,0.00021052,2]
[401288998,1768108251618,-500.0,0.00021052,2]
[401288999,1768108251630,-500.0,0.00021052,2]
[401289000,1768108251641,-250.0,0.00021052,2]
[401289001,1768108251651,-500.0,0.00021052,2]
[401289002,1768108251661,-500.0,0.00021052,2]
[401289003,1768108251671,-250.0,0.00021052,2]
[401289004,1768108251681,-500.0,0.00021052,2]
[401289005,1768108251690,-500.0,0.00021052,2]
[401289006,1768108251700,-250.0,0.00021052,2]
[401289007,1768108251709,-500.0,0.00021052,2]
[401289008,1768108251720,-500.0,0.00021052,2]
[401289009,1768108251735,-228.11344328,0.00021052,2]
[401289010,1768108251744,-630.21271354,0.00021052,2]
[401289011,1768108251754,-250.0,0.00021052,2]
[401289012,1768108251764,-500.0,0.00021052,2]
[401289013,1768108251774,-500.0,0.00021052,2]
[401289014,1768108251784,-287.7278791,0.00021052,2]
[401289015,1768108251794,-500.0,0.00021052,2]
[401289016,1768108251807,-500.0,0.00021052,2]
[401289017,1768108251817,-500.0,0.00021052,2]
[401289018,1768108251827,-500.0,0.00021052,2]
[401289019,1768108251836,-449.51940902,0.00021052,2]
[401289020,1768108251846,-500.0,0.00021052,2]
[401289021,1768108251855,-500.0,0.00021052,2]
[401289022,1768108251865,-500.0,0.00021052,2]
[401289023,1768108251875,-586.97148433,0.00021052,2]
[401289024,1768108251884,-250.0,0.00021052,2]
[401289025,1768108251894,-250.0,0.00021052,2]
[401289026,1768108251904,-250.0,0.00021052,2]
[401289027,1768108251914,-250.0,0.00021052,2]
[401289028,1768108251925,-250.0,0.00021052,2]
[401289029,1768108251934,-250.0,0.00021052,2]
[401289030,1768108251944,-250.0,0.00021052,2]
[401289031,1768108251954,-250.0,0.00021052,2]
[401289032,1768108251963,-250.0,0.00021052,2]
[401289033,1768108251973,-250.0,0.00021052,2]
[401289034,1768108251983,-250.0,0.00021052,2]
[401289035,1768108251993,-250.0,0.00021052,2]
[401289036,1768108252003,-250.0,0.00021052,2]
[401289037,1768108252013,-250.0,0.00021052,2]
[401289038,1768108252023,-250.0,0.00021052,2]
[401289039,1768108252032,-250.0,0.00021052,2]
[401289040,1768108252042,-250.0,0.00021052,2]
[401289041,1768108252052,-250.0,0.00021052,2]
[401289042,1768108252062,-250.0,0.00021052,2]
[401289043,1768108252072,-250.0,0.00021052,2]
[401289044,1768108252082,-330.37589463,0.00021052,2]
[401289045,1768108252092,-250.0,0.00021052,2]
[401289046,1768108252102,-250.0,0.00021052,2]
[401289047,1768108252111,-276.2995984,0.00021052,2]
[401289048,1768108252122,-1000.0,0.00021052,2]
[401289049,1768108252132,-1000.0,0.00021052,2]
[401289050,1768108252142,-1000.0,0.00021052,2]
[401289051,1768108252152,-1000.0,0.00021052,2]
[401289052,1768108252162,-1000.0,0.00021052,2]
[401289053,1768108252172,-1000.0,0.00021052,2]
[401289054,1768108252181,-1000.0,0.00021052,2]
[401289055,1768108252190,-1000.0,0.00021052,2]
[401289056,1768108252200,-998.0,0.00021052,2]
[401289057,1768108252210,-1000.0,0.00021052,2]
[401289058,1768108252220,-1000.0,0.00021052,2]
[401289059,1768108252230,-1000.0,0.00021052,2]
[401289060,1768108252241,-1000.0,0.00021052,2]
[401289061,1768108252250,-344.07605335,0.00021052,2]
[401289062,1768108252260,-1000.0,0.00021063,7]
[401289063,1768108252271,-2167.0,0.00021087,2]
[401289064,1768108252281,-334.5472959,0.00021096,2]
[401289065,1768108252292,-1132.43336872,0.00021123,2]
[401289066,1768108252501,-477.09866015,0.00021157,2]
[401289067,1768108252511,-9531.0,0.00021223,2]
[401289068,1768108252519,-1142.382,0.0002126,2]
[401289069,1768108252529,-2502.1558756,0.0002126,2]
[401289070,1768108252538,-173.92697,0.00021288,2]
[401289071,1768108252547,-151.0,0.00021288,2]
[401289072,1768108252556,-151.0,0.00021288,2]
[401289073,1768108252565,-4653.52472305,0.0002134,2]
[401289074,1768108252574,-4781.85268159,0.00021352,2]
[401289075,1768108252585,-3339.83458548,0.0002136,2]
[401289076,1768108252594,-500.0,0.00021366,2]
[401289077,1768108252604,-500.0,0.00021399,2]
[401289078,1768108252614,-15303.68945609,0.000214,2]
[401289079,1768108252624,-162.33950407,0.000214,2]
[401289080,1768108252633,-154.3586186,0.00021449,2]
[401289081,1768108252642,-549.33078738,0.0002149,2]
[401289082,1768108252653,-57468.87550214,0.000215,2]
[401289083,1768108252662,-221.8841168,0.000215,2]
[401289084,1768108252671,-2000.0,0.000215,2]
[401289085,1768108252680,-151.0,0.000215,2]
[401289086,1768108252690,-151.0,0.000215,2]
[401289087,1768108252698,-151.0,0.000215,2]
[401289088,1768108252707,-151.0,0.000215,2]
[401289089,1768108252716,-151.0,0.000215,2]
[401289090,1768108252729,-151.0,0.000215,2]
[401289091,1768108252738,-151.0,0.000215,2]
[401289092,1768108252748,-219.227499,0.000215,2]
[401289093,1768108252757,-576.96925037,0.000215,2]
[401289094,1768108252767,-151.0,0.000215,2]
[401289095,1768108252776,-151.0,0.000215,2]
[401289096,1768108252785,-160.253841,0.000215,2]
[401289097,1768108252794,-151.0,0.000215,2]
[401289098,1768108252804,-160.253841,0.000215,2]
[401289099,1768108252813,-160.253841,0.000215,2]
[401289100,1768108252823,-151.0,0.000215,2]
[401289101,1768108252833,-151.0,0.000215,2]
[401289102,1768108252842,-160.253843,0.000215,2]
[401289103,1768108252852,-151.0,0.000215,2]
[401289104,1768108252862,-206.637307,0.000215,2]
[401289105,1768108252871,-206.637307,0.000215,2]
[401289106,1768108252880,-206.637307,0.000215,2]
[401289107,1768108252890,-206.637312,0.000215,2]
[401289108,1768108252899,-151.0,0.000215,2]
[401289109,1768108252908,-153.191082,0.000215,2]
[401289110,1768108252918,-153.191082,0.000215,2]
[401289111,1768108252927,-153.191082,0.000215,2]
[401289112,1768108252936,-153.191072,0.000215,2]
[401289113,1768108252945,-242.540878,0.000215,2]
[401289114,1768108252956,-151.0,0.000215,2]
[401289115,1768108252965,-151.0,0.000215,2]
[401289116,1768108252974,-151.0,0.000215,2]
[401289117,1768108252984,-242.540878,0.000215,2]
[401289118,1768108252993,-151.0,0.000215,2]
[401289119,1768108253002,-242.540878,0.000215,2]
[401289120,1768108253011,-242.540886,0.000215,2]
[401289121,1768108253021,-232.98971,0.000215,2]
[401289122,1768108253030,-232.98971,0.000215,2]
[401289123,1768108253040,-232.98971,0.000215,2]
[401289124,1768108253049,-232.989712,0.000215,2]
[401289125,1768108253058,-167.273049,0.000215,2]
[401289126,1768108253067,-151.0,0.000215,2]
[401289127,1768108253076,-231.653809,0.000215,2]
[401289128,1768108253086,-185.671433,0.000215,2]
[401289129,1768108253095,-185.671433,0.000215,2]
[401289130,1768108253104,-185.671433,0.000215,2]
[401289131,1768108253113,-185.67144,0.000215,2]
[401289132,1768108253122,-715.08318,0.000215,2]
[401289133,1768108253131,-715.08318,0.000215,2]
[401289134,1768108253140,-715.08318,0.000215,2]
[401289135,1768108253150,-715.083183,0.000215,2]
[401289136,1768108253159,-151.0,0.000215,2]
[401289137,1768108253169,-418.543655,0.000215,2]
[401289138,1768108253179,-418.543655,0.000215,2]
[401289139,1768108253189,-445.8129,0.000215,2]
[401289140,1768108253198,-418.543655,0.000215,2]
[401289141,1768108253208,-364.920004,0.000215,2]
[401289142,1768108253218,-445.8129,0.000215,2]
[401289143,1768108253228,-418.543651,0.000215,2]
[401289144,1768108253237,-364.920004,0.000215,2]
[401289145,1768108253247,-445.8129,0.000215,2]
[401289146,1768108253255,-364.920004,0.000215,2]
[401289147,1768108253265,-445.812905,0.000215,2]
[401289148,1768108253274,-364.919994,0.000215,2]
[401289149,1768108253283,-151.0,0.000215,2]
[401289150,1768108253292,-292.609231,0.000215,2]
[401289151,1768108253302,-151.0,0.000215,2]
[401289152,1768108253311,-151.0,0.000215,2]
[401289153,1768108253320,-151.0,0.000215,2]
[401289154,1768108253329,-851.699106,0.000215,2]
[401289155,1768108253339,-151.0,0.000215,2]
[401289156,1768108253348,-851.699106,0.000215,2]
[401289157,1768108253358,-851.699106,0.000215,2]
[401289158,1768108253368,-851.699102,0.000215,2]
[401289159,1768108253378,-202.835873,0.000215,2]
[401289160,1768108253387,-202.835873,0.000215,2]
[401289161,1768108253396,-252.136943,0.000215,2]
[401289162,1768108253406,-202.835873,0.000215,2]
[401289163,1768108253415,-252.136943,0.000215,2]
[401289164,1768108253425,-202.835869,0.000215,2]
[401289165,1768108253434,-252.136943,0.000215,2]
[401289166,1768108253443,-252.136943,0.000215,2]
[401289167,1768108253453,-151.0,0.000215,2]
[401289168,1768108253462,-514.027543,0.000215,2]
[401289169,1768108253472,-514.027543,0.000215,2]
[401289170,1768108253482,-514.027543,0.000215,2]
[401289171,1768108253491,-514.027543,0.000215,2]
[401289172,1768108253501,-173.361121,0.000215,2]
[401289173,1768108253510,-173.361121,0.000215,2]
[401289174,1768108253519,-173.361121,0.000215,2]
[401289175,1768108253529,-1008.0,0.000215,2]
[401289176,1768108253538,-173.361124,0.000215,2]
[401289177,1768108253547,-151.0,0.000215,2]
[401289178,1768108253556,-151.0,0.000215,2]
[401289179,1768108253565,-1046.363777,0.000215,2]
[401289180,1768108253575,-1046.363777,0.000215,2]
[401289181,1768108253584,-1046.363777,0.000215,2]
[401289182,1768108253594,-230.143729,0.000215,2]
[401289183,1768108253603,-151.0,0.000215,2]
[401289184,1768108253612,-230.143729,0.000215,2]
[401289185,1768108253622,-1046.363781,0.000215,2]
[401289186,1768108253632,-230.143729,0.000215,2]
[401289187,1768108253641,-230.143724,0.000215,2]
[401289188,1768108253651,-273.843479,0.000215,2]
[401289189,1768108253660,-273.843479,0.000215,2]
[401289190,1768108253670,-273.843479,0.000215,2]
[401289191,1768108253679,-273.843475,0.000215,2]
[401289192,1768108253688,-151.0,0.000215,2]
[401289193,1768108253698,-152.0,0.00021548,5]
[401289194,1768108253708,-1170.8,0.0002158,2]
[401289195,1768108253717,-153.27121522,0.000216,2]
[401289196,1768108253734,-574.12855637,0.000216,2]
[401289197,1768108253744,-3768.7448788,0.00021603,2]
[401289198,1768108253754,-598.6958366,0.00021603,2]
[401289199,1768108253764,-346.92554585,0.00021644,2]
[401289200,1768108253773,-151.0,0.00021823,2]
[401289201,1768108253782,-151.0,0.00021823,2]
[401289202,1768108253793,-151.0919,0.00021918,2]
[401289203,1768108253802,-5000.0,0.00021918,2]
[401289204,1768108253812,-150.00606179,0.00021918,2]
[401289205,1768108253821,-500.0,0.00021955,2]
[401289206,1768108253831,-500.0,0.00021956,2]
[401289207,1768108253841,-499.9999,0.00021957,2]
[401289208,1768108253850,-150.0,0.00021973,2]
[401289209,1768108253859,-500.0,0.00021973,2]
[401289210,1768108253869,-150.0,0.00021973,2]
[401289211,1768108253878,-500.0,0.00021999,2]
[401289212,1768108253887,-500.0,0.00021999,2]
[401289213,1768108253896,-5432.65,0.00022,7]
[401289214,1768108253906,-180248.33,0.00022,2]
[401289215,1768108253915,-121516.9615642,0.00022,4]
[401289216,1768108253926,-151.0,0.00022,2]
[401289217,1768108253935,-167.22402,0.00022,2]
[401289218,1768108253945,-553.52103856,0.00022028,2]
[401289219,1768108253961,-1300.0,0.00022036,2]
[401289220,1768108253973,-500.0,0.00022055,2]
[401289221,1768108253983,-1582.07,0.000221,14]
[401289222,1768108253992,-152.0,0.00022129,6]
[401289223,1768108254002,-595.37131296,0.00022148,2]
[401289224,1768108254011,-1300.0,0.00022175,2]
[401289225,1768108254020,-359.76179104,0.00022192,2]
[401289226,1768108254030,-965.73,0.00022208,2]
[401289227,1768108254040,-482.91,0.00022208,2]
[401289228,1768108254049,-4653.52472305,0.0002222,2]
[401289229,1768108254059,-4781.85268159,0.00022229,2]
[401289230,1768108254069,-500.0,0.00022237,2]
[401289231,1768108254079,-401.33231433,0.00022462,2]
[401289232,1768108254088,-250.0,0.00022521,2]
[401289233,1768108254097,-233.0,0.00022633,2]
[401289234,1768108254106,-617.40005154,0.00022696,2]
[401289235,1768108254125,-152.0,0.00022709,7]
[401289236,1768108254134,-309.45115804,0.0002274,2]
[401289237,1768108254143,-233.0,0.00022762,2]
[401289238,1768108254152,-168.0,0.0002277,2]
[401289239,1768108254161,-200.0,0.00022794,2]
[401289240,1768108254171,-5800.0,0.00022795,2]
[401289241,1768108254180,-200.0,0.00022801,2]
[401289242,1768108254189,-5800.0,0.00022803,2]
[401289243,1768108254199,-200.0,0.00022808,2]
[401289244,1768108254208,-5800.0,0.00022811,2]
[401289245,1768108254217,-200.0,0.00022815,2]
[401289246,1768108254226,-5800.0,0.0002282,2]
[401289247,1768108254235,-1000.0,0.00022825,2]
[401289248,1768108254245,-5800.0,0.00022829,2]
[401289249,1768108254253,-5800.0,0.00022837,2]
[401289250,1768108254262,-5800.0,0.00022846,2]
[401289251,1768108254272,-5800.0,0.00022854,2]
[401289252,1768108254281,-5800.0,0.00022863,2]
[401289253,1768108254290,-5800.0,0.00022871,2]
[401289254,1768108254299,-5800.0,0.00022879,2]
[401289255,1768108254308,-363.07,0.00022882,2]
[401289256,1768108254317,-5800.0,0.00022888,2]
[401289257,1768108254327,-237.0,0.00022888,2]
[401289258,1768108254336,-150.0,0.000229,2]
[401289259,1768108254345,-150.0,0.000229,2]
[401289260,1768108254354,-158.0,0.00022957,2]
[401289261,1768108254363,-152.0,0.00022957,2]
[401289262,1768108254372,-152.0,0.00022957,2]
[401289263,1768108254381,-233.0,0.00022962,2]
[401289264,1768108254390,-171.19779634,0.0002297,2]
[401289265,1768108254399,-1000.0,0.0002297,2]
[401289266,1768108254409,-1000.0,0.0002297,2]
[401289267,1768108254423,-162.03187563,0.0002297,2]
[401289268,1768108254432,-154.0,0.0002297,2]
[401289269,1768108254441,-154.0,0.0002297,2]
[401289270,1768108254450,-154.0,0.0002297,2]
[401289271,1768108254459,-154.0,0.0002297,2]
[401289272,1768108254468,-151.0,0.0002297,2]
[401289273,1768108254478,-154.0,0.0002297,2]
[401289274,1768108254487,-151.0,0.0002297,2]
[401289275,1768108254496,-154.0,0.0002297,2]
[401289276,1768108254506,-151.0,0.0002297,2]
[401289277,1768108254515,-154.0,0.0002297,2]
[401289278,1768108254524,-151.0,0.0002297,2]
[401289279,1768108254533,-154.0,0.0002297,2]
[401289280,1768108254542,-151.0,0.0002297,2]
[401289281,1768108254551,-151.0,0.0002297,2]
[401289282,1768108254560,-151.0,0.0002297,2]
[401289283,1768108254569,-151.0,0.0002297,2]
[401289284,1768108254578,-151.0,0.0002297,2]
[401289285,1768108254587,-151.0,0.0002297,2]
[401289286,1768108254596,-151.0,0.0002297,2]
[401289287,1768108254605,-152.50777348,0.0002297,2]
[401289288,1768108254614,-447.168,0.0002297,2]
[401289289,1768108254624,-1795.82405,0.0002297,2]
[401289290,1768108254633,-1795.82405,0.0002297,2]
[401289291,1768108254643,-1795.82405,0.0002297,2]
[401289292,1768108254652,-1795.82405,0.0002297,2]
[401289293,1768108254662,-1795.82405,0.0002297,2]
[401289294,1768108254671,-1795.82405,0.0002297,2]
[401289295,1768108254681,-1795.82405,0.0002297,2]
[401289296,1768108254690,-1795.82405,0.0002297,2]
[401289297,1768108254699,-1795.82405,0.0002297,2]
[401289298,1768108254710,-1795.82405,0.0002297,2]
[401289299,1768108254720,-500.0,0.00022999,2]
[401289300,1768108254731,-300.0,0.00022999,2]
[401289301,1768108254740,-300.0,0.00022999,2]
[401289302,1768108254749,-666.0,0.00022999,2]
[401289303,1768108254758,-100644.10504383,0.00023,2]
[401289304,1768108254767,-1006.57575146,0.00023,2]
[401289305,1768108254776,-39931.36346327,0.00023,2]
[401289306,1768108254786,-400.0,0.00023,2]
[401289307,1768108254795,-200.0,0.00023,2]
[401289308,1768108254805,-1170.8,0.00023007,2]
[401289309,1768108254814,-300.0,0.00023055,2]
[401289310,1768108254824,-666.0,0.00023055,2]
[401289311,1768108254838,-161.677,0.00023056,2]
[401289312,1768108254847,-3468.0,0.00023056,2]
[401289313,1768108254857,-1405.0,0.00023056,2]
[401289314,1768108254866,-614.497,0.00023056,2]
[401289315,1768108254876,-1267.0,0.00023056,2]
[401289316,1768108254886,-506.0,0.00023056,2]
[401289317,1768108254895,-914.525,0.00023056,2]
[401289318,1768108254905,-1201.689,0.00023056,2]
[401289319,1768108254915,-564.057,0.00023056,2]
[401289320,1768108254925,-2437.0,0.00023056,2]
[401289321,1768108254936,-4820.0,0.00023056,2]
[401289322,1768108254946,-1000.0,0.00023064,2]
[401289323,1768108254955,-350.0,0.00023068,2]
[401289324,1768108254965,-1000.0,0.00023087,2]
[401289325,1768108254974,-500.0,0.00023099,2]
[401289326,1768108254983,-300.0,0.00023099,2]
[401289327,1768108254993,-666.0,0.00023099,2]
[401289328,1768108255002,-4653.52472305,0.00023099,2]
[401289329,1768108255012,-2582.88714665,0.000231,2]
[401289330,1768108255021,-180248.33,0.000231,2]
[401289331,1768108255031,-151.0,0.000231,2]
[401289332,1768108255040,-4781.85268159,0.00023105,2]
[401289333,1768108255050,-1000.0,0.00023122,2]
[401289334,1768108255060,-233.0,0.00023168,2]
[401289335,1768108255075,-248.90452522,0.000232,2]
[401289336,1768108255084,-1000.0,0.000232,2]
[401289337,1768108255094,-5521.0,0.000232,5]
[401289338,1768108255103,-1000.0,0.00023217,2]
[401289339,1768108255113,-640.24385345,0.00023244,2]
[401289340,1768108255122,-162.0,0.0002326,3]
[401289341,1768108255132,-162.0,0.0002326,3]
[401289342,1768108255142,-152.0,0.00023289,8]
[401289343,1768108255153,-165.08,0.00023302,2]
[401289344,1768108255162,-164.0,0.00023315,3]
[401289345,1768108255172,-162.0,0.00023315,3]
[401289346,1768108255181,-834.0,0.00023389,3]
[401289347,1768108255190,-237.0,0.00023396,2]
[401289348,1768108255204,-1000.0,0.00023402,2]
[401289349,1768108255214,-302.63735674,0.00023418,2]
[401289350,1768108255224,-154.64445498,0.00023418,2]
[401289351,1768108255233,-154.0,0.00023418,2]
[401289352,1768108255242,-154.0,0.00023418,2]
[401289353,1768108255252,-154.0,0.00023418,2]
[401289354,1768108255262,-158.1726948,0.00023418,2]
[401289355,1768108255271,-154.58767398,0.00023418,2]
[401289356,1768108255283,-151.0,0.00023418,2]
[401289357,1768108255292,-152.0,0.00023418,2]
[401289358,1768108255303,-152.0,0.00023418,2]
[401289359,1768108255314,-152.0,0.00023418,2]
[401289360,1768108255324,-152.0,0.00023418,2]
[401289361,1768108255335,-152.0,0.00023418,2]
[401289362,1768108255345,-152.0,0.00023418,2]
[401289363,1768108255355,-152.0,0.00023418,2]
[401289364,1768108255364,-152.0,0.00023418,2]
[401289365,1768108255374,-241.59912361,0.00023418,2]
[401289366,1768108255384,-458.77495,0.00023471,2]
[401289367,1768108255393,-536.0,0.00023489,10]
[401289368,1768108255403,-237.0,0.00023491,2]
[401289369,1768108255412,-200.0,0.000235,2]
[401289370,1768108255421,-5432.65,0.000235,7]
[401289371,1768108255431,-162.0,0.00023545,3]
[401289372,1768108255440,-842.0,0.0002356,3]
[401289373,1768108255450,-500.0,0.00023589,2]
[401289374,1768108255460,-151.0,0.0002359,2]
[401289375,1768108255469,-1000.0,0.000236,2]
[401289376,1768108255478,-834.0,0.00023605,3]
[401289377,1768108255488,-150.11649795,0.00023616,2]
[401289378,1768108255497,-834.0,0.00023635,3]
[401289379,1768108255507,-1300.0,0.00023635,2]
[401289380,1768108255516,-9703.69,0.00023641,2]
[401289381,1768108255525,-237.0,0.00023665,2]
[401289382,1768108255535,-1000.0,0.00023684,2]
[401289383,1768108255544,-1000.0,0.00023702,2]
[401289384,1768108255554,-162.0,0.00023708,3]
[401289385,1768108255568,-162.0,0.0002371,3]
[401289386,1768108255578,-834.0,0.0002371,3]